bitfinex/quotes_SOLUSD_20251118
["timestamp","ask_amount","ask_price","bid_price","bid_amount"]
[1763436001712,7.37114112,133.62,133.6,6.26436645]
[1763436001888,18.12096,133.61,133.6,0.66]
[1763436002094,7.37114112,133.63,133.6,0.66]
[1763436002304,18.12096,133.63,133.62,6.26355154]
[1763436002527,25.49210112,133.63,133.62,6.26355154]
[1763436002739,18.12096,133.63,133.62,6.26355154]
[1763436002893,110.07114112,133.64,133.62,6.26355154]
[1763436003224,25.49210112,133.64,133.63,6.26355154]
[1763436003608,18.12096,133.64,133.63,6.26355154]
[1763436003811,18.12096,133.64,133.6,20.58092866]
[1763436004009,7.37114112,133.67,133.62,9.78882769]
[1763436004204,7.37114112,133.67,133.65,6.26578635]
[1763436004409,18.12096,133.66,133.65,6.26578635]
[1763436004594,6.01739551,133.71,133.62,17.15996881]
[1763436004595,171.57114112,133.74,133.66,10.44882769]
[1763436004792,103.4,133.73,133.69,6.26728371]
[1763436004987,7.37114112,133.71,133.68,6.26728371]
[1763436005218,25.49210112,133.71,133.7,6.26728371]
[1763436005593,7.37114112,133.74,133.71,9.78882769]
[1763436005793,0.8,133.77,133.73,6.26374158]
[1763436005994,25.49210112,133.74,133.73,6.26374158]
[1763436006224,7.37114112,133.76,133.73,10.44882769]
[1763436006402,7.37114112,133.76,133.74,6.26032515]
[1763436006853,0.1,133.77,133.75,0.66]
[1763436007127,0.1,133.77,133.75,6.26032515]
[1763436007294,7.37114112,133.76,133.75,6.25563112]
[1763436007494,7.47114112,133.77,133.75,6.25563112]
[1763436007697,0.1,133.77,133.76,0.66]
[1763436007917,0.1,133.77,133.75,9.78882769]
[1763436008221,25.49210112,133.76,133.75,6.25249632]
[1763436008439,18.12096,133.74,133.73,6.25249632]
[1763436008595,25.49210112,133.74,133.72,6.25249632]
[1763436008796,25.49210112,133.74,133.71,16.04132401]
[1763436008797,7.37114112,133.73,133.71,16.04132401]
[1763436009000,7.37114112,133.73,133.71,6.25249632]
[1763436009204,8.07114112,133.72,133.7,6.25249632]
[1763436009398,18.12096,133.68,133.66,6.25249632]
[1763436009615,7.37114112,133.67,133.66,6.25249632]
[1763436009811,0.7,133.71,133.65,6.25249632]
[1763436010021,18.82096,133.71,133.66,6.25249632]
[1763436010210,25.49210112,133.68,133.67,6.25249632]
[1763436010398,25.49210112,133.68,133.66,6.25249632]
[1763436010611,7.37114112,133.67,133.65,6.25249632]
[1763436010902,7.37114112,133.66,133.62,9.78882769]
[1763436011541,0.7,133.66,133.6,9.78882769]
[1763436011711,7.37114112,133.65,133.6,9.78882769]
[1763436011900,18.12096,133.66,133.6,9.78882769]
[1763436012100,7.37114112,133.65,133.6,7.37114112]
[1763436012634,25.49210112,133.66,133.62,9.78882769]
[1763436013241,18.12096,133.66,133.63,0.72]
[1763436013413,18.12096,133.65,133.64,9.78882769]
[1763436013613,18.12096,133.67,133.64,9.78882769]
[1763436013814,25.49210112,133.67,133.64,9.78882769]
[1763436014112,7.37114112,133.74,133.62,7.37114112]
[1763436014113,0.67,133.66,133.62,9.78882769]
[1763436014330,7.37114112,133.64,133.62,9.78882769]
[1763436014505,7.37114112,133.64,133.61,9.78882769]
[1763436014702,7.37114112,133.62,133.58,0.72]
[1763436014904,25.49210112,133.64,133.59,9.78882769]
[1763436015107,7.37114112,133.62,133.57,7.37114112]
[1763436015409,7.37114112,133.61,133.56,17.87996881]
[1763436015827,7.37114112,133.61,133.5,9.98882769]
[1763436015828,18.12096,133.6,133.5,9.98882769]
[1763436016016,25.49210112,133.6,133.56,0.72]
[1763436016334,18.12096,133.58,133.51,0.72]
[1763436016498,25.49210112,133.58,133.53,7.37114112]
[1763436016815,7.37114112,133.57,133.55,9.78882769]
[1763436017015,7.37114112,133.56,133.51,8.09114112]
[1763436017231,7.37114112,133.56,133.53,9.78882769]
[1763436017698,7.37114112,133.57,133.55,9.78882769]
[1763436017904,25.49210112,133.58,133.55,9.78882769]
[1763436018212,7.37114112,133.61,133.57,9.78882769]
[1763436018733,8.08114112,133.61,133.57,9.78882769]
[1763436019025,7.37114112,133.59,133.55,8.35057118]
[1763436019225,0.71,133.6,133.55,9.78882769]
[1763436019432,7.37114112,133.61,133.57,9.78882769]
[1763436019738,8.08114112,133.61,133.57,9.78882769]
[1763436020322,25.49210112,133.62,133.57,17.84996881]
[1763436020629,7.37114112,133.61,133.57,10.47882769]
[1763436020828,7.37114112,133.61,133.58,18.13939887]
[1763436021006,25.49210112,133.61,133.58,18.13939887]
[1763436021437,18.12096,133.61,133.59,10.47882769]
[1763436021637,25.49210112,133.61,133.58,8.35057118]
[1763436021820,7.37114112,133.6,133.58,9.78882769]
[1763436022020,18.12096,133.61,133.58,9.78882769]
[1763436022239,25.49210112,133.61,133.58,9.78882769]
[1763436022527,7.37114112,133.59,133.57,8.35057118]
[1763436022915,8.08114112,133.6,133.57,8.35057118]
[1763436023318,18.12096,133.61,133.57,8.35057118]
[1763436023319,18.12096,133.58,133.57,8.35057118]
[1763436023535,25.49210112,133.58,133.54,8.35057118]
[1763436023730,8.08114112,133.57,133.55,8.35057118]
[1763436023943,8.08114112,133.57,133.54,8.35057118]
[1763436023944,7.37114112,133.57,133.54,8.35057118]
[1763436024514,7.37114112,133.57,133.55,8.35057118]
[1763436024823,18.12096,133.55,133.54,18.13939887]
[1763436025020,18.12096,133.55,133.5,0.2]
[1763436025021,7.37114112,133.55,133.52,8.35057118]
[1763436025236,0.71,133.56,133.5,9.98882769]
[1763436025237,18.12096,133.51,133.5,0.2]
[1763436025437,25.49210112,133.51,133.5,0.2]
[1763436025633,26.20210112,133.51,133.5,0.2]
[1763436025822,13.26914496,133.56,133.5,0.2]
[1763436025823,0.71,133.56,133.5,0.89]
[1763436026132,18.12096,133.52,133.51,9.78882769]
[1763436026308,18.12096,133.52,133.51,18.13939887]
[1763436027141,7.37114112,133.54,133.51,18.13820738]
[1763436027521,7.37114112,133.53,133.51,8.34937969]
[1763436027925,7.37114112,133.54,133.51,8.34937969]
[1763436028322,7.37114112,133.58,133.54,9.78882769]
[1763436028543,0.71,133.6,133.54,8.34688425]
[1763436028544,7.37114112,133.56,133.54,8.34688425]
[1763436028722,7.37114112,133.55,133.52,8.34688425]
[1763436028915,7.37114112,133.56,133.53,8.34688425]
[1763436029115,18.12096,133.54,133.53,8.34688425]
[1763436029311,18.12096,133.54,133.53,18.13571194]
[1763436029530,18.12096,133.55,133.54,9.78882769]
[1763436029733,18.12096,133.55,133.54,18.13525665]
[1763436029932,18.12096,133.55,133.54,10.47882769]
[1763436030124,18.12096,133.56,133.55,9.78882769]
[1763436030324,18.12096,133.56,133.55,18.1358086]
[1763436030546,18.12096,133.55,133.54,18.8258086]
[1763436031048,7.37114112,133.56,133.53,9.78882769]
[1763436031425,18.12096,133.58,133.53,9.78882769]
[1763436031624,18.12096,133.58,133.53,18.8258086]
[1763436031625,18.12096,133.54,133.53,18.8258086]
[1763436031825,18.12096,133.54,133.53,10.47882769]
[1763436032544,18.12096,133.54,133.53,18.8258086]
[1763436033161,7.37114112,133.58,133.53,26.19694972]
[1763436033347,18.12096,133.56,133.55,9.78882769]
[1763436034026,18.12096,133.56,133.55,10.47882769]
[1763436034849,18.12096,133.55,133.53,8.34662832]
[1763436035056,26.20210112,133.55,133.53,8.34662832]
[1763436035388,128.90210112,133.54,133.51,8.34662832]
[1763436035559,18.12096,133.51,133.5,8.54662832]
[1763436035891,18.12096,133.51,133.5,19.02545601]
[1763436036377,102.7,133.53,133.5,19.02367664]
[1763436036686,102.7,133.53,133.52,9.78882769]
[1763436036861,102.7,133.53,133.52,18.13326736]
[1763436037188,7.37114112,133.59,133.52,26.19440848]
[1763436037394,102.7,133.58,133.55,9.78882769]
[1763436037564,102.7,133.58,133.56,15.71437404]
[1763436037877,102.7,133.58,133.56,9.03323292]
[1763436038203,102.7,133.58,133.57,10.47882769]
[1763436038390,102.7,133.58,133.57,18.82206061]
[1763436039484,102.7,133.58,133.57,18.13206061]
[1763436039769,18.12096,133.56,133.55,18.13206061]
[1763436039977,18.12096,133.56,133.55,18.82206061]
[1763436040159,0.71,133.56,133.52,8.34323292]
[1763436040357,18.12096,133.53,133.52,9.03323292]
[1763436040680,18.12096,133.53,133.51,8.34323292]
[1763436040875,18.12096,133.53,133.52,9.78882769]
[1763436041665,8.08114112,133.56,133.52,18.82206061]
[1763436042184,7.37114112,133.56,133.53,0.67]
[1763436042389,0.72,133.58,133.53,18.80206061]
[1763436042591,18.12096,133.54,133.53,18.80206061]
[1763436043587,18.12096,133.54,133.51,8.34323292]
[1763436043588,7.37114112,133.54,133.51,8.34323292]
[1763436043787,7.37114112,133.54,133.52,9.78882769]
[1763436044195,7.37114112,133.54,133.52,18.13206061]
[1763436044797,18.12096,133.53,133.52,18.80206061]
[1763436045185,18.12096,133.53,133.52,10.45882769]
[1763436045391,18.12096,133.53,133.52,18.80636168]
[1763436045781,7.37114112,133.58,133.52,22.38996881]
[1763436045982,18.12096,133.55,133.54,18.13596871]
[1763436046184,18.12096,133.55,133.52,11.93114112]
[1763436046185,0.72,133.57,133.52,18.13596871]
[1763436046397,18.12096,133.6,133.52,9.78882769]
[1763436046398,7.37114112,133.55,133.52,9.78882769]
[1763436046699,7.37114112,133.54,133.52,9.78882769]
[1763436046899,18.12096,133.51,133.5,0.2]
[1763436047082,8.09114112,133.51,133.5,0.2]
[1763436047785,18.84096,133.53,133.5,0.2]
[1763436048081,7.37114112,133.52,133.5,0.2]
[1763436048286,7.37114112,133.52,133.5,9.98882769]
[1763436048686,18.12096,133.55,133.5,9.98882769]
[1763436048886,0.72,133.56,133.5,19.00596871]
[1763436048887,18.12096,133.51,133.5,19.00596871]
[1763436049200,25.49210112,133.51,133.5,8.54714102]
[1763436049385,26.21210112,133.51,133.5,0.2]
[1763436050894,12.14811967,133.51,133.5,0.2]
[1763436051877,23.57623934,133.51,133.5,0.2]
[1763436052502,12.14811967,133.51,133.5,0.2]
[1763436054710,23.57623934,133.51,133.5,0.2]
[1763436055013,18.12096,133.48,133.43,8.54714102]
[1763436055216,11.42811967,133.44,133.43,8.54714102]
[1763436055401,12.14811967,133.44,133.43,8.54714102]
[1763436056016,11.42811967,133.44,133.43,8.54714102]
[1763436056808,2.0,133.56,133.43,9.98882769]
[1763436057125,11.42811967,133.6,133.46,18.16091505]
[1763436057126,11.42811967,133.49,133.46,18.16091505]
[1763436057322,11.42811967,133.51,133.47,12.52053495]
[1763436057629,11.42811967,133.52,133.5,8.37199798]
[1763436057992,11.42811967,133.53,133.5,8.37199798]
[1763436058615,18.12096,133.51,133.5,8.37199798]
[1763436058795,18.12096,133.51,133.5,9.04199798]
[1763436059700,29.54907967,133.51,133.5,8.38021598]
[1763436060019,29.54907967,133.51,133.49,8.38021598]
[1763436060324,114.84811967,133.5,133.48,8.38021598]
[1763436060498,114.84811967,133.5,133.47,18.16904367]
[1763436060499,11.42811967,133.49,133.47,18.16904367]
[1763436060693,18.12096,133.48,133.47,9.78882769]
[1763436060900,18.12096,133.48,133.47,22.30936264]
[1763436061215,102.7,133.5,133.47,18.17050398]
[1763436061392,102.7,133.5,133.48,0.67]
[1763436063342,120.82096,133.5,133.48,0.67]
[1763436063629,102.7,133.5,133.49,9.78882769]
[1763436063918,102.7,133.5,133.49,18.17050398]
[1763436064225,12.14811967,133.5,133.44,18.17050398]
[1763436064527,11.42811967,133.47,133.44,9.78882769]
[1763436064914,11.42811967,133.47,133.44,10.45882769]
[1763436065111,11.42811967,133.45,133.43,9.98882769]
[1763436065320,0.72,133.46,133.43,0.2]
[1763436065321,29.54907967,133.44,133.43,0.2]
[1763436066447,11.42811967,133.5,133.43,10.65882769]
[1763436066448,0.72,133.5,133.43,10.65882769]
[1763436066608,11.42811967,133.49,133.45,9.78882769]
[1763436067013,18.12096,133.48,133.45,10.45882769]
[1763436067219,11.42811967,133.49,133.47,9.78882769]
[1763436067423,29.54907967,133.49,133.47,9.78882769]
[1763436067627,11.42811967,133.49,133.47,0.67]
[1763436067824,11.42811967,133.5,133.46,9.78882769]
[1763436068012,18.12096,133.48,133.47,0.67]
[1763436068216,11.42811967,133.51,133.47,0.67]
[1763436068514,29.54907967,133.51,133.47,9.05167629]
[1763436068710,29.54907967,133.51,133.47,0.67]
[1763436068909,29.54907967,133.51,133.47,18.84050398]
[1763436069917,18.12096,133.49,133.48,0.67]
[1763436070106,18.12096,133.49,133.48,9.78882769]
[1763436070824,0.72,133.51,133.48,9.78882769]
[1763436071031,29.54907967,133.5,133.48,9.78882769]
[1763436071342,29.54907967,133.5,133.49,8.38167629]
[1763436072134,12.09811967,133.5,133.47,8.38167629]
[1763436072311,11.42811967,133.48,133.46,8.38167629]
[1763436072510,29.54907967,133.47,133.46,8.38167629]
[1763436072910,18.12096,133.47,133.46,10.45882769]
[1763436073114,18.12096,133.47,133.46,23.03134213]
[1763436073315,18.12096,133.47,133.46,9.78882769]
[1763436074144,0.67,133.53,133.46,23.03134213]
[1763436074342,11.42811967,133.5,133.48,18.17701307]
[1763436074535,12.09811967,133.49,133.48,8.38818538]
[1763436074741,11.42811967,133.49,133.48,8.38818538]
[1763436074920,29.54907967,133.5,133.48,18.17701307]
[1763436075119,29.54907967,133.5,133.49,8.38818538]
[1763436076248,12.09811967,133.5,133.49,8.38818538]
[1763436076437,12.09811967,133.5,133.43,22.56134213]
[1763436076635,27.90978769,133.56,133.43,22.56134213]
[1763436076636,11.42811967,133.48,133.45,9.78882769]
[1763436076819,18.12096,133.46,133.45,9.78882769]
[1763436077021,18.12096,133.46,133.45,22.36134213]
[1763436077219,18.12096,133.46,133.45,23.03134213]
[1763436077420,18.12096,133.46,133.45,10.45882769]
[1763436077942,18.12096,133.46,133.45,22.36134213]
[1763436078148,18.12096,133.46,133.45,23.03134213]
[1763436078330,18.12096,133.46,133.45,10.45882769]
[1763436078530,29.54907967,133.46,133.44,12.57251444]
[1763436078835,11.42811967,133.45,133.43,9.98882769]
[1763436079648,11.42811967,133.46,133.43,22.56134213]
[1763436079835,18.12096,133.45,133.44,12.57251444]
[1763436080043,18.12096,133.45,133.44,12.59062074]
[1763436080253,18.12096,133.45,133.44,13.27062074]
[1763436080555,18.12096,133.45,133.44,22.37944843]
[1763436080858,18.12096,133.47,133.45,9.78882769]
[1763436081061,0.57,133.51,133.44,12.55262074]
[1763436081062,11.42811967,133.46,133.44,12.55262074]
[1763436081237,11.42811967,133.45,133.43,0.2]
[1763436081437,11.42811967,133.44,133.43,0.1]
[1763436081633,11.42811967,133.44,133.41,0.2]
[1763436081836,11.42811967,133.42,133.41,0.2]
[1763436082160,18.49096,133.46,133.41,0.2]
[1763436082363,11.42811967,133.42,133.41,0.2]
[1763436083272,11.79811967,133.42,133.41,0.2]
[1763436083561,11.79811967,133.42,133.41,0.1]
[1763436084642,11.69811967,133.42,133.41,0.1]
[1763436086447,18.12096,133.39,133.38,0.2]
[1763436086651,29.81907967,133.39,133.38,0.2]
[1763436086845,18.12096,133.32,133.31,9.78882769]
[1763436087158,18.12096,133.32,133.31,0.68]
[1763436087745,18.12096,133.33,133.31,0.68]
[1763436087945,102.7,133.35,133.32,9.78882769]
[1763436088352,102.7,133.35,133.34,9.78882769]
[1763436088551,102.7,133.35,133.34,10.46882769]
[1763436088767,102.7,133.35,133.34,0.68]
[1763436091468,102.7,133.35,133.34,10.46882769]
[1763436091670,11.42811967,133.4,133.35,9.78882769]
[1763436091844,18.12096,133.37,133.35,10.46882769]
[1763436092039,11.42811967,133.41,133.37,9.78882769]
[1763436092339,0.67,133.43,133.37,9.78882769]
[1763436092340,11.42811967,133.44,133.39,9.78882769]
[1763436092845,18.12096,133.39,133.38,9.78882769]
[1763436093263,18.12096,133.39,133.36,9.78882769]
[1763436093471,18.12096,133.39,133.36,21.21694736]
[1763436093775,18.12096,133.39,133.38,9.78882769]
[1763436094147,18.12096,133.39,133.38,10.46882769]
[1763436095873,18.12096,133.4,133.38,10.46882769]
[1763436096175,18.12096,133.4,133.39,0.68]
[1763436096746,18.12096,133.4,133.38,0.68]
[1763436096952,18.12096,133.4,133.39,10.46882769]
[1763436097371,30.21907967,133.4,133.35,9.78882769]
[1763436097567,30.21907967,133.4,133.37,9.78882769]
[1763436097780,29.54907967,133.4,133.37,9.78882769]
[1763436098076,22.73797436,133.47,133.33,15.98811967]
[1763436098077,15.04948991,133.36,133.33,0.68]
[1763436098331,22.73797436,133.47,133.28,53.76077704]
[1763436098332,11.42811967,133.35,133.3,0.68]
[1763436098579,11.42811967,133.34,133.31,9.78882769]
[1763436098760,0.67,133.39,133.3,0.68]
[1763436098951,11.42811967,133.34,133.3,0.68]
[1763436099150,11.42811967,133.35,133.31,9.78882769]
[1763436099347,0.67,133.41,133.31,9.78882769]
[1763436099568,11.42811967,133.37,133.32,0.68]
[1763436099972,11.42811967,133.37,133.33,9.78882769]
[1763436100182,0.67,133.43,133.35,9.78882769]
[1763436100361,11.42811967,133.4,133.35,9.78882769]
[1763436100570,0.67,133.43,133.37,9.78882769]
[1763436100777,18.12096,133.39,133.37,9.78882769]
[1763436101162,18.12096,133.38,133.36,9.78882769]
[1763436101488,18.12096,133.38,133.36,10.46882769]
[1763436101785,18.12096,133.38,133.37,0.68]
[1763436102606,11.42811967,133.38,133.35,9.78882769]
[1763436102896,11.42811967,133.38,133.35,0.68]
[1763436103063,11.42811967,133.38,133.34,9.78882769]
[1763436103489,11.42811967,133.38,133.34,0.68]
[1763436103693,0.67,133.41,133.32,9.78882769]
[1763436103909,11.42811967,133.38,133.34,0.68]
[1763436104613,11.42811967,133.37,133.32,9.78882769]
[1763436104817,11.42811967,133.37,133.32,10.46882769]
[1763436105026,12.09811967,133.37,133.32,10.46882769]
[1763436105186,29.54907967,133.35,133.31,9.78882769]
[1763436105620,29.54907967,133.34,133.31,9.78882769]
[1763436105791,18.12096,133.34,133.33,9.78882769]
[1763436106515,18.79096,133.34,133.31,9.78882769]
[1763436106687,29.54907967,133.34,133.31,9.78882769]
[1763436106894,29.54907967,133.34,133.31,10.46882769]
[1763436107281,18.12096,133.32,133.31,9.78882769]
[1763436107482,18.12096,133.32,133.31,10.46882769]
[1763436107700,0.67,133.37,133.29,9.05143989]
[1763436107701,11.42811967,133.34,133.29,9.05143989]
[1763436107908,18.12096,133.32,133.29,9.05143989]
[1763436108127,18.12096,133.31,133.3,8.37143989]
[1763436108417,18.12096,133.31,133.3,9.05143989]
[1763436108616,18.12096,133.31,133.3,0.68]
[1763436109204,18.12096,133.31,133.3,9.05120142]
[1763436110019,18.12096,133.31,133.27,11.62811967]
[1763436110020,12.09811967,133.31,133.27,8.15120142]
[1763436110218,11.42811967,133.29,133.27,0.2]
[1763436110521,11.42811967,133.32,133.27,0.2]
[1763436110821,18.12096,133.29,133.28,10.46882769]
[1763436111400,0.57,133.36,133.29,9.78882769]
[1763436111602,18.12096,133.31,133.29,10.46882769]
[1763436111803,18.12096,133.3,133.29,10.46882769]
[1763436111998,18.12096,133.3,133.27,0.2]
[1763436112320,11.42811967,133.31,133.29,9.78882769]
[1763436112514,11.42811967,133.31,133.29,6.27176154]
[1763436112717,11.42811967,133.31,133.28,6.27176154]
[1763436112920,7.40263484,133.3,133.28,6.27176154]
[1763436113237,7.40263484,133.29,133.27,0.2]
[1763436113530,7.40263484,133.28,133.27,0.2]
[1763436113716,7.97263484,133.28,133.27,0.2]
[1763436117023,18.12096,133.26,133.21,6.47176154]
[1763436117236,18.12096,133.26,133.21,38.02295674]
[1763436117406,7.40263484,133.22,133.21,0.2]
[1763436118040,7.97263484,133.22,133.21,0.2]
[1763436119203,7.40263484,133.22,133.21,0.2]
[1763436119841,7.40263484,133.23,133.21,10.66882769]
[1763436120148,18.12096,133.26,133.21,10.66882769]
[1763436120349,7.40263484,133.23,133.21,10.66882769]
[1763436120554,0.57,133.27,133.21,10.66882769]
[1763436120743,7.40263484,133.25,133.23,9.78882769]
[1763436120942,0.57,133.29,133.23,9.78882769]
[1763436120943,7.40263484,133.27,133.23,9.78882769]
[1763436121143,0.57,133.29,133.23,9.78882769]
[1763436121144,14.00152603,133.29,133.23,9.78882769]
[1763436121345,0.57,133.29,133.23,10.46882769]
[1763436121550,7.40263484,133.26,133.23,9.78882769]
[1763436121855,25.52359484,133.26,133.23,9.78882769]
[1763436122437,25.52359484,133.26,133.23,9.69832283]
[1763436122647,9.78882769,133.34,133.23,9.69832283]
[1763436122648,9.78882769,133.36,133.24,8.08263484]
[1763436122852,67.11778278,133.47,133.26,13.67439638]
[1763436122853,7.40263484,133.32,133.26,13.67439638]
[1763436123032,7.40263484,133.32,133.27,0.68]
[1763436123232,7.40263484,133.31,133.27,0.68]
[1763436123455,18.12096,133.28,133.27,0.68]
[1763436124029,7.97263484,133.28,133.23,6.27176154]
[1763436124249,7.40263484,133.26,133.22,6.27176154]
[1763436124568,18.12096,133.24,133.23,10.46882769]
[1763436124762,18.12096,133.23,133.21,7.15176154]
[1763436125065,0.57,133.26,133.21,0.2]
[1763436125066,7.40263484,133.22,133.21,0.2]
[1763436126960,7.97263484,133.22,133.21,0.2]
[1763436127370,7.40263484,133.22,133.21,0.2]
[1763436127546,7.97263484,133.22,133.21,0.2]
[1763436128398,7.40263484,133.22,133.21,0.2]
[1763436130471,0.57,133.24,133.21,0.2]
[1763436130472,7.40263484,133.24,133.22,9.78882769]
[1763436130662,7.40263484,133.25,133.22,9.78882769]
[1763436130967,7.40263484,133.25,133.21,10.66882769]
[1763436131143,7.40263484,133.25,133.22,0.68]
[1763436133153,0.57,133.3,133.22,0.68]
[1763436133369,7.40263484,133.28,133.22,0.68]
[1763436133549,18.12096,133.25,133.22,0.68]
[1763436134258,18.12096,133.25,133.22,6.95176154]
[1763436134443,18.12096,133.24,133.23,0.69]
[1763436135952,31.9857246,133.36,133.21,16.26058923]
[1763436135953,18.12096,133.23,133.22,9.78882769]
[1763436136167,18.12096,133.23,133.22,10.47882769]
[1763436136696,7.40263484,133.3,133.22,17.88146253]
[1763436136855,7.40263484,133.32,133.26,23.43568859]
[1763436137055,18.12096,133.29,133.28,9.78882769]
[1763436137368,7.40263484,133.31,133.28,9.78882769]
[1763436137586,18.12096,133.28,133.26,9.78882769]
[1763436137897,18.12096,133.27,133.26,9.78882769]
[1763436138450,18.12096,133.28,133.26,9.78882769]
[1763436138672,18.12096,133.28,133.27,0.69]
[1763436139275,7.40263484,133.28,133.25,9.78882769]
[1763436139669,7.40263484,133.28,133.26,0.67]
[1763436139874,7.40263484,133.28,133.25,10.45882769]
[1763436140799,7.40263484,133.28,133.23,6.24422606]
[1763436141097,18.12096,133.33,133.25,6.24422606]
[1763436141098,18.12096,133.27,133.25,6.24422606]
[1763436141269,18.12096,133.27,133.26,16.03305375]
[1763436141469,18.12096,133.27,133.26,16.70305375]
[1763436142188,18.12096,133.27,133.26,10.45882769]
[1763436142396,7.40263484,133.32,133.27,9.78882769]
[1763436142574,0.57,133.35,133.29,16.05549769]
[1763436142774,0.57,133.35,133.28,6.93667]
[1763436142775,7.40263484,133.33,133.28,6.93667]
[1763436142973,18.12096,133.29,133.28,16.72549769]
[1763436143290,18.12096,133.29,133.28,6.26608603]
[1763436143499,7.40263484,133.31,133.27,9.78882769]
[1763436143500,18.12096,133.28,133.27,16.05491372]
[1763436143672,18.12096,133.28,133.27,16.72491372]
[1763436144001,18.12096,133.28,133.27,10.45882769]
[1763436144788,18.12096,133.28,133.27,9.78882769]
[1763436144990,18.12096,133.28,133.27,10.45882769]
[1763436146305,18.12096,133.28,133.27,16.72491372]
[1763436146792,7.40263484,133.31,133.27,16.72491372]
[1763436146994,18.12096,133.28,133.27,16.72491372]
[1763436147373,18.12096,133.29,133.27,10.45882769]
[1763436147596,0.1,133.37,133.28,16.41309577]
[1763436147800,7.40263484,133.36,133.32,9.78882769]
[1763436148097,18.12096,133.33,133.32,9.78882769]
[1763436148313,0.1,133.37,133.34,9.78882769]
[1763436148598,18.12096,133.35,133.34,16.7446072]
[1763436148792,0.1,133.37,133.34,9.78882769]
[1763436148793,7.40263484,133.36,133.34,9.78882769]
[1763436150074,0.1,133.37,133.35,0.67]
[1763436150276,0.1,133.37,133.36,6.28577951]
[1763436150499,0.1,133.37,133.36,16.0746072]
[1763436150671,0.1,133.37,133.36,10.45882769]
[1763436150871,0.1,133.37,133.36,13.46917576]
[1763436152396,18.22096,133.37,133.36,9.29462982]
[1763436152601,18.12096,133.36,133.35,9.78882769]
[1763436152789,18.12096,133.36,133.35,16.07366653]
[1763436153177,0.1,133.37,133.35,16.07366653]
[1763436153379,18.12096,133.36,133.35,10.45882769]
[1763436153579,18.12096,133.36,133.35,18.83678723]
[1763436154170,18.12096,133.36,133.35,10.45882769]
[1763436154579,18.12096,133.36,133.35,16.74072114]
[1763436154885,18.22096,133.37,133.36,9.78882769]
[1763436155203,18.22096,133.37,133.36,16.07025272]
[1763436155706,18.12096,133.36,133.35,16.07025272]
[1763436156090,18.12096,133.35,133.34,16.07025272]
[1763436156284,0.1,133.37,133.35,9.78882769]
[1763436156484,18.22096,133.37,133.36,9.78882769]
[1763436156692,18.22096,133.37,133.36,18.83678723]
[1763436157073,18.22096,133.37,133.36,28.67978769]
[1763436157402,0.1,133.37,133.36,16.06164318]
[1763436157597,18.22096,133.37,133.36,9.78882769]
[1763436158100,18.22096,133.37,133.36,10.45882769]
[1763436158273,18.22096,133.37,133.36,28.67978769]
[1763436159104,18.22096,133.37,133.36,34.94904236]
[1763436159409,18.22096,133.37,133.33,12.55334122]
[1763436159410,26.19359484,133.37,133.33,6.26925467]
[1763436159699,18.12096,133.35,133.34,0.67]
[1763436159892,7.40263484,133.36,133.34,0.67]
[1763436160077,18.12096,133.34,133.33,16.05808236]
[1763436160279,18.12096,133.34,133.33,16.72808236]
[1763436160600,18.12096,133.35,133.34,9.78882769]
[1763436160786,18.12096,133.35,133.34,16.72553596]
[1763436160989,18.12096,133.36,133.34,16.72553596]
[1763436161190,18.12096,133.36,133.35,6.93670827]
[1763436161393,0.1,133.37,133.35,17.86146253]
[1763436161603,0.1,133.37,133.36,6.93365433]
[1763436162703,0.1,133.37,133.36,6.26365433]
[1763436162885,0.1,133.37,133.36,18.12096]
[1763436163084,7.50263484,133.37,133.34,10.47882769]
[1763436163310,0.1,133.37,133.34,34.86344202]
[1763436163601,18.12096,133.36,133.35,0.69]
[1763436164313,18.12096,133.36,133.35,6.95365433]
[1763436165306,18.12096,133.36,133.35,6.26365433]
[1763436165508,18.12096,133.36,133.34,16.05248202]
[1763436165812,7.50263484,133.37,133.33,24.38461433]
[1763436166108,7.50263484,133.37,133.33,6.95365433]
[1763436166507,0.1,133.37,133.34,10.47882769]
[1763436166713,18.12096,133.35,133.34,16.74248202]
[1763436167813,18.12096,133.35,133.34,34.86344202]
[1763436169613,0.1,133.37,133.34,34.86344202]
[1763436169614,18.22096,133.37,133.35,9.78882769]